bitfinex/quotes_BTCUSD_20241101
["timestamp","ask_amount","ask_price","bid_price","bid_amount"]
[1730494601823,0.34179425,69235.0,69234.0,0.181521]
[1730494603366,0.34180063,69235.0,69234.0,0.181521]
[1730494603816,0.29689025,69235.0,69234.0,0.181521]
[1730494604467,0.34180293,69235.0,69234.0,0.181521]
[1730494604691,0.29689025,69235.0,69234.0,0.181521]
[1730494605142,0.3418029,69235.0,69234.0,0.181521]
[1730494608011,0.29689025,69235.0,69234.0,0.181521]
[1730494608225,0.34181373,69235.0,69234.0,0.181521]
[1730494615165,0.38493356,69235.0,69234.0,0.181521]
[1730494615374,0.34181373,69235.0,69234.0,0.181521]
[1730494619257,0.3849545,69235.0,69234.0,0.181521]
[1730494620917,0.34181373,69235.0,69234.0,0.181521]
[1730494630795,0.38495322,69235.0,69234.0,0.181521]
[1730494632044,0.34181373,69235.0,69234.0,0.181521]
[1730494633256,0.10207446,69235.0,69234.0,0.181521]
[1730494633448,0.05892348,69235.0,69234.0,0.181521]
[1730494633668,0.014,69235.0,69234.0,0.181521]
[1730494634729,0.158435,69235.0,69234.0,0.181521]
[1730494636953,0.014,69235.0,69234.0,0.181521]
[1730494637785,0.014,69235.0,69234.0,0.18440944]
[1730494639292,0.014,69235.0,69234.0,0.325958]
[1730494639709,0.014,69235.0,69234.0,0.45414397]
[1730494639924,0.014,69235.0,69234.0,0.48307397]
[1730494640136,0.001642,69242.0,69241.0,0.144423]
[1730494640342,0.001642,69242.0,69241.0,0.49866218]
[1730494640549,0.001642,69242.0,69241.0,0.64606023]
[1730494641232,0.001642,69242.0,69241.0,0.78451548]
[1730494641443,0.001642,69242.0,69241.0,0.55763452]
[1730494642093,0.002642,69242.0,69241.0,0.55863452]
[1730494642420,0.001642,69242.0,69241.0,0.55763452]
[1730494642621,0.001642,69242.0,69241.0,0.55863452]
[1730494644702,0.04307399,69278.0,69242.0,0.41937232]
[1730494644910,0.08842571,69283.0,69242.0,0.41937232]
[1730494644911,0.2164065,69276.0,69275.0,0.321652]
[1730494645147,0.2164065,69276.0,69275.0,0.450582]
[1730494645789,0.2164065,69283.0,69282.0,0.173267]
[1730494646004,0.2164065,69283.0,69282.0,0.26169271]
[1730494646219,0.001644,69290.0,69285.0,0.02893]
[1730494646436,0.001644,69290.0,69285.0,0.173261]
[1730494646835,0.001644,69290.0,69286.0,0.144328]
[1730494647318,0.001644,69290.0,69286.0,0.08842571]
[1730494647529,0.001644,69290.0,69287.0,0.144327]
[1730494648417,0.001644,69290.0,69289.0,0.144323]
[1730494648628,0.001644,69290.0,69289.0,0.219423]
[1730494648861,0.001644,69290.0,69289.0,0.319123]
[1730494649085,0.2164065,69305.0,69304.0,0.225391]
[1730494649303,0.2164065,69305.0,69304.0,0.43625581]
[1730494649520,0.28149221,69312.0,69311.0,0.144277]
[1730494649521,0.001636,69312.0,69311.0,0.144277]
[1730494649973,0.2180405,69319.0,69311.0,0.2208401]
[1730494650193,0.2180405,69319.0,69318.0,0.23268771]
[1730494650426,0.001634,69319.0,69318.0,0.27606871]
[1730494650638,0.001634,69319.0,69318.0,0.32200756]
[1730494651102,0.001642,69327.0,69326.0,0.144246]
[1730494651328,0.001642,69327.0,69326.0,0.45381056]
[1730494653041,0.001642,69327.0,69326.0,0.59226581]
[1730494653323,0.001634,69336.0,69326.0,0.59226581]
[1730494653324,0.001634,69336.0,69335.0,0.144227]
[1730494653541,0.001634,69336.0,69335.0,0.41704681]
[1730494653742,0.001634,69336.0,69335.0,0.27859156]
[1730494654813,0.001634,69336.0,69335.0,0.29259156]
[1730494655704,0.001634,69336.0,69335.0,0.27859156]
[1730494655912,0.001634,69336.0,69335.0,0.32197256]
[1730494656332,0.001634,69336.0,69335.0,0.32774356]
[1730494656777,0.001634,69336.0,69335.0,0.005771]
[1730494657208,0.001634,69336.0,69335.0,0.014]
[1730494657417,0.145859,69336.0,69335.0,0.014]
[1730494657835,0.145859,69336.0,69330.0,0.144237]
[1730494657836,0.001634,69336.0,69329.0,0.2164065]
[1730494658075,0.13845525,69335.0,69324.0,0.288499]
[1730494658284,0.13845525,69335.0,69328.0,0.2164065]
[1730494658494,0.144229,69334.0,69328.0,0.144241]
[1730494658909,0.13845525,69335.0,69321.0,0.288512]
[1730494658910,0.144231,69333.0,69327.0,0.144243]
[1730494659120,0.288458,69334.0,69325.0,0.288496]
[1730494659339,0.144231,69333.0,69327.0,0.144243]
[1730494659772,0.13845525,69335.0,69328.0,0.5048865]
[1730494659998,0.13845525,69335.0,69325.0,0.13436456]
[1730494660247,0.13845525,69335.0,69332.0,0.144233]
[1730494660449,0.28268225,69335.0,69329.0,0.144237]
[1730494660666,0.13845525,69335.0,69328.0,0.014]
[1730494660947,0.13845525,69335.0,69330.0,0.144236]
[1730494661185,0.13845525,69335.0,69321.0,0.288509]
[1730494661186,0.13845525,69335.0,69314.0,0.13436456]
[1730494661411,0.13845525,69335.0,69325.0,0.014]
[1730494661625,0.144232,69333.0,69328.0,0.144241]
[1730494662230,0.144232,69333.0,69330.0,0.014]
[1730494663396,0.001642,69334.0,69330.0,0.014]
[1730494664034,0.001642,69334.0,69330.0,0.044673]
[1730494664243,0.001642,69334.0,69333.0,0.144231]
[1730494665354,0.001642,69334.0,69333.0,0.22621533]
[1730494665600,0.001642,69334.0,69333.0,0.223331]
[1730494666039,0.001642,69334.0,69333.0,0.237331]
[1730494667379,0.001642,69334.0,69333.0,0.24021508]
[1730494667846,0.001642,69334.0,69333.0,0.22621508]
[1730494668071,0.001642,69334.0,69333.0,0.24021508]
[1730494668769,0.001642,69334.0,69333.0,0.223331]
[1730494668980,0.001642,69334.0,69333.0,0.237331]
[1730494669431,0.001642,69334.0,69333.0,0.223331]
[1730494669880,0.001642,69334.0,69333.0,0.237331]
[1730494671010,0.001642,69334.0,69333.0,0.223331]
[1730494671442,0.001642,69334.0,69333.0,0.237331]
[1730494671892,0.001642,69334.0,69333.0,0.223331]
[1730494672127,0.001642,69334.0,69333.0,0.237331]
[1730494684322,0.04658403,69334.0,69333.0,0.237331]
[1730494685617,0.04658403,69334.0,69333.0,0.158231]
[1730494686050,0.04658403,69334.0,69333.0,0.144231]
[1730494686526,0.04658403,69334.0,69333.0,0.158231]
[1730494688270,0.13436456,69358.0,69334.0,0.1788]
[1730494688501,0.0756,69374.0,69359.0,0.144177]
[1730494688502,0.2164065,69363.0,69359.0,0.144177]
[1730494688722,0.04661154,69360.0,69359.0,0.144177]
[1730494689640,0.04661154,69360.0,69355.0,0.288368]
[1730494689641,0.04661154,69360.0,69355.0,0.28837]
[1730494689873,0.04497754,69359.0,69355.0,0.144183]
[1730494690365,0.04497754,69359.0,69356.0,0.0223083]
[1730494690830,0.28263525,69358.0,69344.0,0.369415]
[1730494691045,0.04497754,69357.0,69352.0,0.14419]
[1730494691269,0.04497754,69356.0,69352.0,0.14419]
[1730494691711,0.04497754,69356.0,69350.0,0.288388]
[1730494691929,0.14419,69353.0,69345.0,0.288412]
[1730494692167,0.144187,69354.0,69349.0,0.144198]
[1730494692371,0.28264225,69354.0,69349.0,0.144198]
[1730494692576,0.28264225,69354.0,69347.0,0.288402]
[1730494692787,0.28264225,69354.0,69350.0,0.144194]
[1730494692975,0.04493029,69353.0,69350.0,0.144194]
[1730494693458,0.13845525,69354.0,69350.0,0.144195]
[1730494693946,0.13845525,69354.0,69349.0,0.302393]
[1730494694150,0.28264225,69354.0,69350.0,0.144196]
[1730494695465,0.14419,69353.0,69347.0,0.288401]
[1730494695704,0.13845525,69354.0,69350.0,0.158196]
[1730494695910,0.28264225,69354.0,69350.0,0.158196]
[1730494696333,0.14419,69353.0,69348.0,0.288398]
[1730494696545,0.13845525,69354.0,69350.0,0.014]
[1730494696990,0.001642,69353.0,69350.0,0.014]
[1730494697201,0.001642,69353.0,69351.0,0.144193]
[1730494698149,0.001642,69353.0,69350.0,0.144194]
[1730494698798,0.001642,69353.0,69349.0,0.288396]
[1730494699023,0.001642,69353.0,69350.0,0.144195]
[1730494699452,0.001642,69353.0,69350.0,0.158195]
[1730494699867,0.001642,69353.0,69350.0,0.144195]
[1730494701432,0.001642,69353.0,69351.0,0.144192]
[1730494702543,0.134758,69354.0,69351.0,0.144192]
[1730494703216,0.134758,69354.0,69351.0,0.158192]
[1730494703638,0.134758,69354.0,69351.0,0.144192]
[1730494704082,0.134758,69354.0,69351.0,0.158192]
[1730494707416,0.134758,69354.0,69351.0,0.014]
[1730494707628,0.144191,69352.0,69351.0,0.014]
[1730494707847,0.28264625,69352.0,69351.0,0.014]
[1730494708776,0.38074625,69352.0,69351.0,0.014]
[1730494709184,0.144207,69345.0,69343.0,0.2164065]
[1730494709414,0.288409,69346.0,69343.0,0.2164065]
[1730494709640,0.144206,69345.0,69343.0,0.2164065]
[1730494709862,0.144206,69345.0,69341.0,0.144214]
[1730494710084,0.144209,69344.0,69341.0,0.144214]
[1730494710343,0.144211,69343.0,69340.0,0.000821]
[1730494710563,0.13845525,69346.0,69340.0,0.000821]
[1730494710786,0.42687025,69345.0,69340.0,0.000821]
[1730494711198,0.144214,69341.0,69340.0,0.000821]
[1730494712114,0.144214,69341.0,69340.0,0.014821]
[1730494712572,0.144214,69341.0,69340.0,0.000821]
[1730494713004,0.144214,69341.0,69340.0,0.014821]
[1730494713652,0.28266925,69341.0,69340.0,0.014821]
[1730494719064,0.28266925,69341.0,69340.0,0.000821]
[1730494719494,0.28466925,69341.0,69340.0,0.001821]
[1730494720182,0.36676925,69341.0,69340.0,0.001821]
[1730494720412,0.84299904,69341.0,69340.0,0.001821]
[1730494720629,0.86134743,69341.0,69340.0,0.001821]
[1730494720862,0.86134743,69341.0,69340.0,0.000821]
[1730494720863,0.77452617,69341.0,69340.0,0.000821]
[1730494721292,0.77452617,69341.0,69340.0,0.001821]
[1730494721293,0.77752617,69341.0,69340.0,0.001821]
[1730494721503,0.84944139,69341.0,69340.0,0.001821]
[1730494721726,0.77452617,69341.0,69340.0,0.000821]
[1730494722187,0.88622274,69341.0,69340.0,0.001821]
[1730494722407,0.77852617,69341.0,69340.0,0.001821]
[1730494722630,0.77452617,69341.0,69340.0,0.000821]
[1730494722842,0.77852617,69341.0,69340.0,0.001821]
[1730494723262,0.86461917,69341.0,69340.0,0.001821]
[1730494724393,0.77852617,69341.0,69340.0,0.001821]
[1730494725312,0.69119333,69341.0,69340.0,0.001821]
[1730494725931,0.82967063,69341.0,69340.0,0.001821]
[1730494726566,0.82965755,69341.0,69340.0,0.001821]
[1730494727509,0.72024655,69341.0,69340.0,0.001821]
[1730494727707,0.58176925,69341.0,69340.0,0.001821]
[1730494728346,0.62476275,69341.0,69340.0,0.001821]
[1730494730358,0.58176925,69341.0,69340.0,0.001821]
[1730494730820,0.48054875,69341.0,69327.0,0.000821]
[1730494731037,0.46110556,69328.0,69327.0,0.000821]
[1730494731997,0.46110556,69328.0,69327.0,0.001821]
[1730494732645,0.46110556,69328.0,69327.0,0.000821]
[1730494733691,0.51706081,69328.0,69327.0,0.000821]
[1730494733904,0.28269625,69328.0,69327.0,0.000821]
[1730494734337,0.28769625,69328.0,69327.0,0.001821]
[1730494734585,0.80111447,69328.0,69327.0,0.001821]
[1730494735082,0.81126247,69328.0,69327.0,0.001821]
[1730494735268,0.94560577,69328.0,69327.0,0.001821]
[1730494735712,0.94060577,69328.0,69327.0,0.000821]
[1730494735923,0.80624121,69328.0,69327.0,0.000821]
[1730494736147,0.81124121,69328.0,69327.0,0.001821]
[1730494736381,0.14426,69319.0,69318.0,0.000821]
[1730494736593,0.59897981,69319.0,69318.0,0.000821]
[1730494736837,0.62684713,69319.0,69318.0,0.000821]
[1730494737072,0.62684713,69319.0,69292.0,0.2164065]
[1730494737073,0.144314,69293.0,69292.0,0.2164065]
[1730494737307,0.37867856,69293.0,69292.0,0.2164065]
[1730494737523,0.144331,69285.0,69277.0,0.2164065]
[1730494737761,0.27869556,69285.0,69277.0,0.2164065]
[1730494737976,0.144345,69278.0,69277.0,0.2164065]
[1730494738202,0.144354,69274.0,69273.0,0.0818]
[1730494738421,0.28280925,69274.0,69273.0,0.0818]
[1730494740014,0.28380925,69274.0,69273.0,0.0928]
[1730494742671,0.13945525,69274.0,69273.0,0.0928]
[1730494743187,0.28380925,69274.0,69273.0,0.0928]
[1730494743418,0.001,69274.0,69273.0,0.0928]
[1730494744323,0.001,69274.0,69273.0,0.09362]
[1730494745214,0.145354,69274.0,69273.0,0.09362]
[1730494745463,0.49044781,69274.0,69273.0,0.01182]
[1730494746128,0.41817381,69274.0,69273.0,0.01182]
[1730494746346,0.28380925,69274.0,69273.0,0.01182]
[1730494758170,0.28380925,69274.0,69273.0,0.18892]
[1730494758171,0.001,69274.0,69273.0,0.18892]
[1730494758446,0.001,69274.0,69273.0,0.333276]
[1730494766496,0.13436456,69292.0,69273.0,0.333276]
[1730494766497,0.13436456,69305.0,69273.0,0.4053265]
[1730494766746,0.04273319,69316.0,69285.0,0.319431]
[1730494766747,0.2164065,69286.0,69285.0,0.319431]
[1730494767201,0.2164065,69286.0,69285.0,0.0776]
[1730494767408,0.2164065,69293.0,69285.0,0.0776]
[1730494767616,0.56145281,69292.0,69285.0,0.0776]
[1730494768032,0.144318,69291.0,69286.0,0.144328]
[1730494768265,0.13845525,69290.0,69285.0,0.0776]
[1730494768474,0.13845525,69290.0,69282.0,0.144335]
[1730494768475,0.13436456,69287.0,69282.0,0.144335]
[1730494768682,0.13845525,69286.0,69282.0,0.2164065]
[1730494768916,0.13845525,69286.0,69283.0,0.144334]
[1730494769347,0.13845525,69286.0,69285.0,0.001]
[1730494769831,0.13845525,69286.0,69283.0,0.144334]
[1730494770041,0.14245525,69286.0,69283.0,0.145334]
[1730494770460,0.13845525,69286.0,69283.0,0.144334]
[1730494770948,0.14245525,69286.0,69285.0,0.145331]
[1730494772706,0.13845525,69286.0,69285.0,0.144331]
[1730494773119,0.14345525,69286.0,69285.0,0.144331]
[1730494773845,0.13845525,69286.0,69285.0,0.144331]
[1730494774062,0.15245525,69286.0,69285.0,0.145331]
[1730494778956,0.15245525,69286.0,69285.0,0.001]
[1730494779837,0.29678425,69286.0,69285.0,0.001]
[1730494780044,0.15409725,69286.0,69285.0,0.001]
[1730494780505,0.29842625,69286.0,69285.0,0.001]
[1730494780708,0.15409725,69286.0,69285.0,0.001]
[1730494782518,0.29842625,69286.0,69285.0,0.001]
[1730494783145,0.15409725,69286.0,69285.0,0.001]
[1730494784004,0.31142625,69286.0,69285.0,0.002]
[1730494790321,0.16709725,69286.0,69285.0,0.002]
[1730494790528,0.16709725,69286.0,69285.0,0.146331]
[1730494793510,0.028642,69286.0,69285.0,0.318431]
[1730494803019,0.028642,69286.0,69285.0,0.1741]
[1730494803246,0.028642,69286.0,69285.0,0.002]
[1730494803456,0.172971,69286.0,69285.0,0.002]
[1730494804168,0.31142625,69286.0,69285.0,0.002]
[1730494804332,0.31142625,69286.0,69285.0,0.001]
[1730494806942,0.41142625,69286.0,69285.0,0.001]
[1730494807163,0.70978886,69286.0,69285.0,0.001]
[1730494807378,0.793534,69286.0,69285.0,0.001]
[1730494807597,0.9320113,69286.0,69285.0,0.001]
[1730494807805,0.9180113,69286.0,69285.0,0.001]
[1730494808285,0.9190113,69286.0,69285.0,0.001]
[1730494808706,0.144352,69275.0,69274.0,0.0016875]
[1730494808934,0.28280725,69275.0,69274.0,0.0016875]
[1730494809137,0.144354,69274.0,69273.0,0.00082]
[1730494809395,0.28280925,69274.0,69273.0,0.00082]
[1730494810690,0.45866713,69274.0,69273.0,0.00082]
[1730494810896,0.46336713,69274.0,69273.0,0.00082]
[1730494811112,0.46536713,69274.0,69273.0,0.00082]
[1730494811564,0.28280925,69274.0,69273.0,0.00082]
[1730494811980,0.29680925,69274.0,69273.0,0.00082]
[1730494812182,0.31280925,69274.0,69273.0,0.00082]
[1730494815258,0.31080925,69274.0,69273.0,0.00082]
[1730494815904,0.31280925,69274.0,69273.0,0.00082]
[1730494821452,0.31080925,69274.0,69273.0,0.00082]
[1730494821669,0.40389066,69274.0,69273.0,0.00082]
[1730494821879,0.40189066,69274.0,69273.0,0.00082]
[1730494822088,0.40389066,69274.0,69273.0,0.00082]
[1730494827319,0.40553266,69274.0,69273.0,0.00082]
[1730494828176,0.71813916,69274.0,69273.0,0.00082]
[1730494828426,0.59703266,69274.0,69273.0,0.00082]
[1730494828859,0.67533266,69274.0,69273.0,0.00082]
[1730494829051,0.7201675,69274.0,69273.0,0.00082]
[1730494829261,0.75676534,69274.0,69273.0,0.00082]
[1730494829503,0.77976534,69274.0,69273.0,0.00082]
[1730494829706,0.7151675,69274.0,69273.0,0.00082]
[1730494829927,0.85815809,69274.0,69273.0,0.00082]
[1730494830155,0.87215809,69274.0,69273.0,0.00082]
[1730494830370,0.79372469,69274.0,69273.0,0.00082]
[1730494831274,0.77972469,69274.0,69273.0,0.00082]
[1730494831485,0.79372469,69274.0,69273.0,0.00082]
[1730494831705,0.7291675,69274.0,69273.0,0.00082]
[1730494831946,0.7431675,69274.0,69273.0,0.00082]
[1730494832620,0.6286675,69274.0,69273.0,0.00082]
[1730494832836,0.50553266,69274.0,69273.0,0.00082]
[1730494833225,0.55036815,69274.0,69273.0,0.00082]
[1730494837331,0.54836815,69274.0,69273.0,0.00082]
[1730494838671,0.55036815,69274.0,69273.0,0.00082]
[1730494840258,0.54836815,69274.0,69273.0,0.00082]
[1730494840612,0.55036815,69274.0,69273.0,0.00082]
[1730494844501,0.57336815,69274.0,69273.0,0.00082]
[1730494844711,0.63789844,69274.0,69273.0,0.00082]
[1730494844925,0.71683444,69274.0,69273.0,0.00082]
[1730494845130,0.57336815,69274.0,69273.0,0.00082]
[1730494845358,0.45928674,69274.0,69273.0,0.00082]
[1730494845602,0.31963274,69274.0,69273.0,0.00082]
[1730494845820,0.31445125,69274.0,69273.0,0.00082]
[1730494846033,0.031642,69274.0,69273.0,0.323076]
[1730494846313,0.029642,69274.0,69273.0,0.323076]
[1730494846942,0.001642,69274.0,69273.0,0.323076]
[1730494847361,0.031642,69274.0,69273.0,0.323076]
[1730494847569,0.029642,69274.0,69273.0,0.323076]
[1730494848213,0.015642,69274.0,69273.0,0.323076]
[1730494848647,0.001642,69286.0,69285.0,0.144331]
[1730494848922,0.001642,69286.0,69285.0,0.319031]
[1730494851744,0.002642,69286.0,69285.0,0.333031]
[1730494852158,0.003642,69286.0,69285.0,0.334031]
[1730494853638,0.005642,69286.0,69285.0,0.334031]
[1730494854043,0.003642,69286.0,69285.0,0.334031]
[1730494855204,0.005642,69286.0,69285.0,0.334031]
[1730494856548,0.003642,69286.0,69285.0,0.334031]
[1730494858243,0.005642,69286.0,69285.0,0.334031]
[1730494858451,0.003642,69286.0,69285.0,0.334031]
[1730494859109,0.005642,69286.0,69285.0,0.334031]
[1730494860616,0.14209725,69286.0,69285.0,0.0971]
[1730494860821,0.14209725,69286.0,69285.0,0.241431]
[1730494862997,0.14409725,69286.0,69285.0,0.241431]
[1730494863413,0.34613258,69286.0,69285.0,0.015]
[1730494863633,0.28842625,69286.0,69285.0,0.015]
[1730494863854,0.28642625,69286.0,69285.0,0.015]
[1730494864088,0.29112625,69286.0,69285.0,0.015]
[1730494864338,0.40132513,69286.0,69285.0,0.015]
[1730494864555,0.288701,69276.0,69273.0,0.00082]
[1730494864763,0.144354,69274.0,69273.0,0.00082]
[1730494864972,0.288692,69278.0,69273.0,0.00082]
[1730494865187,0.144351,69276.0,69273.0,0.145175]
[1730494865434,0.288662,69285.0,69273.0,0.00082]
[1730494865679,0.144349,69277.0,69273.0,0.145175]
[1730494865888,0.13845525,69276.0,69273.0,0.00082]
[1730494866103,0.144354,69274.0,69273.0,0.00082]
[1730494866321,0.28280925,69274.0,69273.0,0.00082]
[1730494866533,0.28280925,69274.0,69273.0,0.01482]
[1730494867381,0.13845525,69274.0,69273.0,0.00082]
[1730494867973,0.14245525,69274.0,69273.0,0.01482]
[1730494868419,0.28680925,69274.0,69273.0,0.01482]
[1730494868828,0.28480925,69274.0,69273.0,0.01482]
[1730494869859,0.14045525,69274.0,69273.0,0.01482]
[1730494871677,0.14045525,69274.0,69273.0,0.04372]
[1730494872101,0.14045525,69274.0,69273.0,0.01482]
[1730494872479,0.14245525,69274.0,69273.0,0.01482]
[1730494873022,0.14045525,69274.0,69273.0,0.01482]
[1730494873633,0.14245525,69274.0,69273.0,0.159176]
[1730494873837,0.14045525,69274.0,69273.0,0.159176]
[1730494874046,0.14245525,69274.0,69273.0,0.159176]
[1730494874663,0.002,69274.0,69273.0,0.331876]
[1730494874977,0.004,69274.0,69273.0,0.331876]
[1730494877688,0.14245525,69274.0,69273.0,0.01482]
[1730494878152,0.28680925,69274.0,69273.0,0.01482]
[1730494878395,0.324272,69274.0,69273.0,0.01482]
[1730494878622,0.28680925,69274.0,69273.0,0.01482]
[1730494879086,0.28480925,69274.0,69273.0,0.01482]
[1730494879803,0.28950925,69274.0,69273.0,0.01482]
[1730494880051,0.28480925,69274.0,69273.0,0.01482]
[1730494880261,0.28680925,69274.0,69273.0,0.01482]
[1730494880486,0.41553553,69274.0,69273.0,0.01482]
[1730494880939,0.4604575,69274.0,69273.0,0.01482]
[1730494881396,0.5641575,69274.0,69273.0,0.00082]
[1730494881619,0.5771575,69274.0,69273.0,0.00182]
[1730494881838,0.5714575,69274.0,69273.0,0.00182]
[1730494882089,0.5714575,69274.0,69273.0,0.00082]
[1730494882325,0.5984575,69274.0,69273.0,0.00182]
[1730494882571,0.46973122,69274.0,69273.0,0.00182]
[1730494882802,0.45573122,69274.0,69273.0,0.00182]
[1730494883026,0.46973122,69274.0,69273.0,0.00182]
[1730494883252,0.42480925,69274.0,69273.0,0.00182]
[1730494883481,0.56328655,69274.0,69273.0,0.00182]
[1730494883917,0.56128655,69274.0,69273.0,0.00182]
[1730494884801,0.56328655,69274.0,69273.0,0.00182]
[1730494885024,0.56962855,69274.0,69273.0,0.00182]
[1730494885258,0.42645125,69274.0,69273.0,0.00182]
[1730494892242,0.47131685,69274.0,69273.0,0.00182]
[1730494893398,0.47601685,69274.0,69273.0,0.00182]
[1730494893637,0.47131685,69274.0,69273.0,0.00182]
[1730494899914,0.47601685,69274.0,69273.0,0.00182]
[1730494900123,0.47131685,69274.0,69273.0,0.00182]
[1730494901522,0.47601685,69274.0,69273.0,0.00182]
[1730494901756,0.47131685,69274.0,69273.0,0.00182]
[1730494904031,0.47601685,69274.0,69273.0,0.00182]
[1730494904266,0.47131685,69274.0,69273.0,0.00182]
[1730494905111,0.47601685,69274.0,69273.0,0.00182]
[1730494905320,0.51912166,69274.0,69273.0,0.00182]
[1730494905607,0.65759896,69274.0,69273.0,0.00182]
[1730494905817,0.65289896,69274.0,69273.0,0.00182]
[1730494907660,0.60979415,69274.0,69273.0,0.00182]
[1730494908079,0.67445137,69274.0,69273.0,0.00182]
[1730494908490,0.67449401,69274.0,69273.0,0.00182]
[1730494909863,0.67249401,69274.0,69273.0,0.00182]
[1730494910069,0.67449401,69274.0,69273.0,0.00182]
[1730494910757,0.67449742,69274.0,69273.0,0.00182]
[1730494911193,0.60979415,69274.0,69273.0,0.00182]
[1730494912030,0.757226,69274.0,69273.0,0.00182]
[1730494912872,0.75731884,69274.0,69273.0,0.00182]
[1730494914606,0.84368034,69274.0,69273.0,0.00182]
[1730494917634,0.99132429,69274.0,69273.0,0.00182]
[1730494918522,0.75741249,69274.0,69273.0,0.00182]
[1730494919156,0.23612594,69274.0,69273.0,0.26648856]
[1730494919405,0.043642,69274.0,69273.0,0.26648856]
[1730494920376,0.043642,69274.0,69273.0,0.41084456]
[1730494920377,0.027642,69274.0,69273.0,0.41084456]
[1730494920596,0.028642,69274.0,69273.0,0.41084456]
[1730494920825,0.015642,69274.0,69273.0,0.321476]
[1730494921046,0.004642,69274.0,69273.0,0.321476]
[1730494921259,0.005642,69274.0,69273.0,0.335476]
[1730494921721,0.003642,69274.0,69273.0,0.335476]
[1730494923306,0.005642,69274.0,69273.0,0.335476]
[1730494923829,0.003642,69274.0,69273.0,0.335476]
[1730494925225,0.005642,69274.0,69273.0,0.335476]
[1730494926673,0.003642,69274.0,69273.0,0.335476]
[1730494929144,0.003642,69274.0,69273.0,0.19112]
[1730494930588,0.28845125,69274.0,69273.0,0.19112]
[1730494930824,0.28845125,69274.0,69273.0,0.01482]
[1730494930825,0.30594084,69274.0,69273.0,0.01482]
[1730494931040,0.28845125,69274.0,69273.0,0.01482]
[1730494931487,0.28645125,69274.0,69273.0,0.01482]
[1730494931712,0.28845125,69274.0,69273.0,0.01482]
[1730494934861,0.28645125,69274.0,69273.0,0.01482]
[1730494935075,0.28845125,69274.0,69273.0,0.01482]
[1730494939104,0.37303618,69274.0,69273.0,0.01482]
[1730494939320,0.38845125,69274.0,69273.0,0.01482]
[1730494939984,0.38745125,69274.0,69273.0,0.01482]
[1730494940201,0.40145125,69274.0,69273.0,0.01482]
[1730494940647,0.40045125,69274.0,69273.0,0.00082]
[1730494940868,0.39945125,69274.0,69273.0,0.00182]
[1730494941310,0.39945125,69274.0,69273.0,0.00082]
[1730494941311,0.49297303,69274.0,69273.0,0.00082]
[1730494941528,0.49297303,69274.0,69273.0,0.00182]
[1730494941529,0.50597303,69274.0,69273.0,0.00182]
[1730494941760,0.5940337,69274.0,69273.0,0.00182]
[1730494942197,0.6080337,69274.0,69273.0,0.00182]
[1730494942404,0.5950337,69274.0,69273.0,0.00082]
[1730494942611,0.47251192,69274.0,69273.0,0.00082]
[1730494942825,0.48851192,69274.0,69273.0,0.00082]
[1730494943487,0.47451192,69274.0,69273.0,0.00082]
[1730494943716,0.50151192,69274.0,69273.0,0.00182]
[1730494943925,0.48851192,69274.0,69273.0,0.00082]
[1730494944360,0.63998922,69274.0,69273.0,0.00182]
[1730494945865,0.50151192,69274.0,69273.0,0.00182]
[1730494946324,0.52307997,69274.0,69273.0,0.00182]
[1730494946757,0.45837583,69274.0,69273.0,0.00182]
[1730494947890,0.46307583,69274.0,69273.0,0.00182]
[1730494948106,0.45837583,69274.0,69273.0,0.00182]
[1730494948315,0.59685313,69274.0,69273.0,0.00182]
[1730494948525,0.66154096,69274.0,69273.0,0.00182]
[1730494948775,1.02164322,69274.0,69273.0,0.00182]
[1730494948987,1.11374322,69274.0,69273.0,0.00182]
[1730494949210,1.02749505,69274.0,69273.0,0.00182]
[1730494949440,1.11373688,69274.0,69273.0,0.00182]
[1730494949837,0.26736,69271.0,69270.0,0.000816]
[1730494950041,0.59611819,69271.0,69270.0,0.000816]
[1730494950239,0.68821819,69271.0,69270.0,1e-06]
[1730494950620,0.70369135,69271.0,69270.0,1e-06]
[1730494951231,0.64371299,69271.0,69270.0,1e-06]
[1730494951441,0.9371737,69271.0,69270.0,1e-06]
[1730494951872,0.9511737,69271.0,69270.0,1e-06]
[1730494952517,0.9364126,69271.0,69270.0,1e-06]
[1730494952725,0.9364126,69271.0,69257.0,0.000817]
[1730494952726,0.246387,69258.0,69257.0,0.000817]
[1730494952933,0.48668397,69258.0,69257.0,0.000817]
[1730494953138,0.62516127,69258.0,69257.0,0.000817]
[1730494953810,0.71352983,69258.0,69257.0,0.000817]
[1730494954018,1.20569403,69258.0,69257.0,0.000817]
[1730494954230,1.0478328,69258.0,69257.0,1e-06]
[1730494954427,1.03435964,69258.0,69257.0,1e-06]
[1730494954635,1.41376614,69258.0,69257.0,1e-06]
[1730494954874,1.08493332,69258.0,69257.0,1e-06]
[1730494955077,1.36478953,69258.0,69257.0,1e-06]
[1730494955969,1.37878953,69258.0,69257.0,1e-06]
[1730494956616,1.51376624,69258.0,69257.0,1e-06]
[1730494956820,1.49976624,69258.0,69257.0,1e-06]
[1730494957027,1.53527102,69258.0,69257.0,1e-06]
[1730494957478,1.42773467,69258.0,69257.0,1e-06]
[1730494957687,1.53527102,69258.0,69257.0,1e-06]
[1730494957894,1.25541481,69258.0,69257.0,1e-06]
[1730494958105,1.14787846,69258.0,69257.0,1e-06]
[1730494958328,0.496406,69249.0,69248.0,0.000817]
[1730494958541,0.80922737,69249.0,69248.0,0.000817]
[1730494959415,0.80922737,69249.0,69248.0,1e-06]
[1730494959416,1.07945559,69249.0,69248.0,1e-06]
[1730494959641,1.1068845,69249.0,69248.0,1e-06]
[1730494959878,1.1516174,69249.0,69248.0,1e-06]
[1730494960112,1.1656174,69249.0,69248.0,1e-06]
[1730494960334,1.1516174,69249.0,69248.0,1e-06]
[1730494960554,1.1068845,69249.0,69248.0,1e-06]
[1730494961454,1.15160351,69249.0,69248.0,1e-06]
[1730494962087,0.002,69235.0,69230.0,0.082016]